bitfinex/quotes_ETHUSD_20260202
["timestamp","ask_amount","ask_price","bid_price","bid_amount"]
[1770047501152,12.59008498,2378.1,2376.3,1.05205571]
[1770047501327,12.59008498,2378.1,2376.4,0.58745507]
[1770047501828,0.01712109,2378.6,2376.4,0.58745507]
[1770047501829,12.60720607,2378.6,2376.6,0.01712109]
[1770047502230,12.60720607,2378.6,2376.5,0.1024]
[1770047502955,0.0011,2377.9,2376.6,1.05192291]
[1770047503256,0.0011,2377.9,2376.7,0.1024]
[1770047503477,0.0011,2378.1,2376.8,0.882]
[1770047504946,12.59118498,2378.1,2376.8,1.0518224]
[1770047505153,12.60720607,2377.6,2376.4,0.95492542]
[1770047505454,12.60720607,2377.6,2376.5,1.05192754]
[1770047505642,12.60720607,2377.6,2376.4,4.57546646]
[1770047505643,12.60720607,2377.2,2376.4,0.36747035]
[1770047506063,12.60720607,2377.6,2376.4,1.41944991]
[1770047506259,12.60720607,2377.6,2376.4,0.36747035]
[1770047506454,12.60720607,2377.6,2376.4,1.4194797]
[1770047506766,12.59008498,2377.4,2376.4,1.41945328]
[1770047506948,12.59008498,2377.4,2376.4,0.36747035]
[1770047507145,12.59008498,2377.2,2376.4,0.36747035]
[1770047507368,12.59008498,2377.2,2376.3,0.001]
[1770047507544,12.59008498,2376.8,2376.0,0.001]
[1770047507744,12.59008498,2376.6,2376.0,0.001]
[1770047508139,12.36056308,2377.1,2376.3,1.05202396]
[1770047508335,12.36056308,2377.1,2376.2,1.05206884]
[1770047508558,12.36056308,2377.1,2376.1,1.05211461]
[1770047508744,12.36056308,2377.1,2376.0,0.001]
[1770047510068,0.882,2377.3,2376.0,0.883]
[1770047510972,0.882,2377.3,2376.1,1.05214427]
[1770047511477,13.7297746,2377.3,2376.1,1.05214427]
[1770047511650,12.86489569,2377.2,2376.0,1.0531868]
[1770047511854,12.86489569,2377.2,2376.0,1.053183]
[1770047511855,12.8477746,2377.1,2376.0,1.053183]
[1770047512057,12.8477746,2377.1,2376.0,1.0531878]
[1770047512775,12.8477746,2377.1,2376.0,0.001]
[1770047514249,1.09743191,2377.4,2376.0,0.001]
[1770047514448,12.8477746,2377.4,2376.0,0.001]
[1770047515172,12.86489569,2377.2,2376.2,0.001]
[1770047515692,13.7297746,2377.1,2376.2,0.001]
[1770047515977,12.86489569,2376.9,2376.2,0.001]
[1770047516274,0.882,2377.1,2376.2,0.001]
[1770047516478,0.0011,2377.3,2376.2,0.001]
[1770047517143,0.0011,2377.5,2376.2,1.05309999]
[1770047517347,0.0011,2378.1,2376.4,0.11952109]
[1770047517654,0.0011,2378.1,2376.3,0.61435]
[1770047517860,12.8488746,2378.1,2376.4,0.882]
[1770047518878,12.8488746,2378.1,2376.3,1.49635]
[1770047519177,12.8488746,2378.1,2376.4,1.05201144]
[1770047519378,12.8477746,2377.9,2376.5,0.67564072]
[1770047520671,0.8831,2378.1,2376.5,0.67564072]
[1770047520871,13.7308746,2378.1,2376.5,0.67564072]
[1770047521074,13.7308746,2378.1,2376.6,1.05192291]
[1770047521278,12.8477746,2377.9,2376.6,1.05192291]
[1770047521665,12.8477746,2377.9,2376.5,1.72757778]
[1770047521865,12.8477746,2377.9,2376.4,4.20798122]
[1770047521866,12.8477746,2377.3,2376.4,1.05199218]
[1770047522079,12.8477746,2377.3,2376.2,0.001]
[1770047522755,12.8477746,2377.0,2376.1,0.52539634]
[1770047523287,12.8477746,2377.0,2376.1,1.57753547]
[1770047523494,1.09743191,2377.3,2376.1,0.52539634]
[1770047523495,13.7297746,2376.9,2376.1,0.52539634]
[1770047524092,12.8477746,2376.7,2375.6,0.001]
[1770047524294,12.8477746,2376.7,2375.7,1.0523161]
[1770047524593,12.8477746,2376.7,2375.6,0.001]
[1770047524790,12.8477746,2376.6,2375.6,0.001]
[1770047525558,12.8477746,2376.2,2375.6,0.001]
[1770047525761,1.09743191,2376.7,2375.6,1.05334921]
[1770047525762,0.882,2376.1,2375.6,1.05334921]
[1770047526061,12.8477746,2376.7,2375.6,1.05334921]
[1770047526062,0.882,2376.5,2375.6,1.05334921]
[1770047526257,0.882,2376.5,2375.6,0.001]
[1770047526258,13.7297746,2376.5,2375.6,0.001]
[1770047526860,12.8477746,2376.3,2375.4,0.001]
[1770047527813,12.8477746,2376.3,2375.2,0.001]
[1770047527814,12.8477746,2375.4,2374.1,0.0008]
[1770047528105,0.882,2375.3,2374.6,1.05278872]
[1770047528404,0.882,2375.4,2374.1,4.21279645]
[1770047528607,0.882,2375.4,2374.6,1.05280862]
[1770047528783,0.882,2375.4,2374.5,1.05282635]
[1770047529191,13.7297746,2375.4,2374.3,1.05294191]
[1770047529384,13.7297746,2375.4,2374.4,0.001]
[1770047529797,12.8477746,2376.0,2374.4,0.001]
[1770047529997,0.882,2375.9,2374.4,0.56970431]
[1770047530201,13.74689569,2375.9,2374.4,0.56970431]
[1770047531282,12.8477746,2375.5,2374.4,1.05389731]
[1770047531496,13.7297746,2375.4,2374.4,1.05389731]
[1770047531976,13.7297746,2375.4,2374.4,0.001]
[1770047533189,13.7297746,2375.4,2374.4,1.05388705]
[1770047533406,0.882,2375.4,2374.4,0.001]
[1770047533577,12.8477746,2376.0,2374.4,0.001]
[1770047533908,2.24100459,2376.5,2374.4,0.001]
[1770047533909,12.8477746,2376.6,2374.5,0.01712109]
[1770047534207,9.35854849,2376.9,2375.5,0.01712109]
[1770047534208,0.0011,2376.9,2375.5,0.01712109]
[1770047534379,0.0011,2376.9,2375.5,0.882]
[1770047534782,13.74789569,2376.8,2374.5,0.1024]
[1770047534977,13.74789569,2376.8,2374.8,0.01712109]
[1770047534978,12.8477746,2376.8,2374.8,0.01712109]
[1770047535212,0.0011,2376.9,2374.9,12.48809617]
[1770047535419,12.8488746,2376.9,2375.0,1.05263157]
[1770047535619,12.86489569,2376.8,2375.0,1.05263157]
[1770047535784,0.01712109,2376.5,2375.0,1.05263157]
[1770047535982,0.90012109,2376.5,2375.0,1.05263157]
[1770047536193,0.90012109,2376.5,2375.1,0.52631579]
[1770047536887,13.74789569,2376.5,2375.1,0.52631579]
[1770047537103,0.01712109,2376.2,2375.0,1.05263157]
[1770047537305,0.01712109,2376.2,2374.8,4.21052631]
[1770047537707,13.74789569,2376.5,2374.8,4.21052631]
[1770047537905,13.7307746,2376.5,2374.8,4.21052631]
[1770047538104,0.01712109,2376.8,2374.8,4.21052631]
[1770047538305,0.883,2376.8,2374.9,0.93040526]
[1770047538616,13.7307746,2376.8,2374.9,0.93040526]
[1770047539382,12.8477746,2376.5,2375.0,1.05263157]
[1770047540383,9.37456958,2376.6,2374.9,1.05266986]
[1770047540384,12.86439286,2375.9,2374.9,1.05266986]
[1770047540585,12.88151395,2375.6,2374.3,1.05291436]
[1770047540819,12.86439286,2375.2,2374.2,1.05295827]
[1770047540995,13.74739286,2375.1,2374.2,1.05296559]
[1770047541200,13.74739286,2375.1,2374.1,0.0008]
[1770047542028,0.883,2375.1,2374.1,0.0008]
[1770047542994,0.58678072,2376.0,2374.2,0.883]
[1770047543225,1.50775568,2376.4,2374.1,0.0008]
[1770047543226,13.74739286,2376.1,2374.1,0.0008]
[1770047543502,12.86439286,2376.0,2374.2,0.883]
[1770047543822,12.86439286,2375.8,2374.2,0.883]
[1770047544203,12.86439286,2375.8,2374.1,0.0008]
[1770047544798,0.0011,2376.9,2375.4,8.89602549]
[1770047545109,12.86439286,2376.5,2375.5,0.88960255]
[1770047545300,12.86439286,2376.5,2374.5,1.08392583]
[1770047545301,0.01712109,2375.7,2374.5,1.05285323]
[1770047545495,0.01712109,2375.7,2374.5,1.93585323]
[1770047545740,0.01712109,2375.7,2374.5,1.05285323]
[1770047545929,12.88151395,2376.0,2374.6,0.61472662]
[1770047546404,12.86439286,2376.0,2374.6,0.61472662]
[1770047546904,0.01712109,2375.9,2374.6,0.61472662]
[1770047547106,12.88151395,2375.9,2374.6,1.49772662]
[1770047547509,12.88151395,2375.9,2374.7,1.05276455]
[1770047547732,12.88151395,2375.9,2374.8,0.67615494]
[1770047548038,0.0011,2376.9,2375.2,9.29790522]
[1770047548263,0.0011,2376.9,2375.8,0.01712109]
[1770047548532,0.0011,2376.9,2375.1,1.08392583]
[1770047548533,12.86549286,2376.9,2375.4,0.883]
[1770047548736,12.86439286,2376.8,2375.4,0.883]
[1770047548939,12.86439286,2376.8,2374.9,0.01712109]
[1770047549096,12.86439286,2376.8,2375.4,0.883]
[1770047549561,12.86549286,2376.9,2375.5,1.93541001]
[1770047551262,13.74849286,2376.9,2375.5,1.05241001]
[1770047551460,13.74849286,2376.9,2375.5,2.08787902]
[1770047552872,13.74849286,2376.9,2375.5,1.92171223]
[1770047553079,12.86439286,2376.3,2375.1,4.21034648]
[1770047553356,13.74739286,2376.3,2374.9,0.883]
[1770047553571,12.86439286,2376.1,2374.7,1.05276455]
[1770047556027,12.86439286,2375.9,2374.7,1.05276455]
[1770047556234,0.01712109,2374.0,2373.9,0.001]
[1770047556552,13.74739286,2374.5,2373.5,1.05327006]
[1770047556748,12.88151395,2374.3,2373.4,1.05410806]
[1770047557052,15.05783951,2374.2,2373.4,0.0008]
[1770047557254,15.05783951,2374.2,2373.1,0.001]
[1770047557255,0.90424512,2374.1,2373.1,0.001]
[1770047557559,13.74739286,2374.0,2373.1,4.21487536]
[1770047557857,13.74739286,2374.0,2373.1,1.05447435]
[1770047558232,13.74739286,2374.0,2373.1,0.001]
[1770047558426,0.916597,2373.9,2373.1,0.001]
[1770047558842,1.799597,2373.9,2373.1,0.001]
[1770047559166,1.799597,2373.9,2372.5,4.21482606]
[1770047559167,12.86439286,2373.8,2372.0,4.21568801]
[1770047559328,15.90545262,2373.7,2371.9,0.22057103]
[1770047559529,12.86439286,2373.3,2371.9,0.22057103]
[1770047559773,12.86439286,2373.1,2371.9,1.05477944]
[1770047559928,12.86439286,2373.1,2372.4,1.05377701]
[1770047560133,12.86439286,2374.2,2372.4,1.05376491]
[1770047560355,16.73033986,2374.0,2372.4,1.05376491]
[1770047560539,12.86439286,2373.9,2372.5,0.52689057]
[1770047561459,12.86439286,2373.9,2372.6,1.05369636]
[1770047561765,0.11952109,2374.5,2372.6,1.07081745]
[1770047561766,0.883,2374.5,2372.6,1.07081745]
[1770047561978,9.783913,2373.8,2372.5,0.52689057]
[1770047562135,9.35744849,2374.3,2372.1,1.05388917]
[1770047562136,0.01712109,2372.6,2372.1,1.05388917]
[1770047562339,0.01712109,2372.9,2372.0,1.0539629]
[1770047562736,0.883,2373.4,2372.0,1.0539629]
[1770047562962,13.74739286,2373.4,2372.0,1.0539629]
[1770047563165,12.88151395,2373.2,2371.9,1.05480323]
[1770047563466,1.2881514,2373.1,2371.9,1.69888116]
[1770047563635,1.2881514,2373.1,2371.9,1.05479312]
[1770047564365,12.88151395,2373.2,2371.9,1.05479955]
[1770047564732,12.88151395,2373.2,2371.9,1.05478641]
[1770047565161,0.883,2373.4,2371.9,1.05478641]
[1770047565331,12.86439286,2373.2,2371.9,1.05478641]
[1770047565537,0.883,2373.4,2372.1,1.05391846]
[1770047566135,0.883,2373.4,2372.1,1.05491846]
[1770047566336,0.0011,2374.0,2372.2,0.1024]
[1770047566541,0.0011,2374.0,2372.3,12.863957]
[1770047566836,0.0011,2374.0,2372.7,0.01712109]
[1770047567160,9.39170292,2375.1,2372.7,0.01712109]
[1770047567161,12.86599286,2375.6,2373.7,0.01712109]
[1770047567349,0.0011,2375.2,2374.0,0.01712109]
[1770047567665,0.0011,2375.2,2374.1,1.93603062]
[1770047567964,0.0011,2375.2,2374.1,1.05303062]
[1770047568284,0.0011,2375.2,2374.1,1.93603062]
[1770047568467,0.01712109,2374.8,2373.4,4.21321715]
[1770047568681,0.01712109,2374.8,2373.8,1.05314969]
[1770047568835,0.01712109,2374.5,2373.4,1.05333348]
[1770047569031,0.01712109,2374.5,2373.7,4.21278461]
[1770047569342,12.55943757,2374.8,2374.0,1.05304446]
[1770047569664,0.883,2374.9,2373.8,4.21253027]
[1770047569665,0.883,2374.9,2373.8,0.883]
[1770047569863,0.883,2374.9,2373.2,1.05342996]
[1770047569864,0.01712109,2374.8,2373.2,1.05342996]
[1770047570036,1.38395397,2374.8,2373.3,1.40973266]
[1770047570438,0.0011,2375.2,2373.5,0.01712109]
[1770047570732,0.0011,2375.2,2373.6,0.883]
[1770047571835,0.0011,2375.2,2373.7,1.05320807]
[1770047572046,0.01712109,2374.6,2373.1,4.21386407]
[1770047572259,8.445576,2374.5,2373.1,0.42138641]
[1770047572491,13.8395397,2374.6,2372.1,0.001]
[1770047572492,0.01712109,2373.6,2372.1,0.001]
[1770047572778,12.93941861,2373.8,2372.7,1.05362942]
[1770047572951,12.93941861,2373.8,2372.1,0.001]
[1770047573149,1.38224186,2373.7,2373.0,1.05350849]
[1770047573344,1.38224186,2373.7,2372.1,0.42286474]
[1770047573545,1.38224186,2373.7,2372.9,1.05356258]
[1770047573886,1.38224186,2373.7,2372.2,1.05387404]
[1770047574172,1.38224186,2373.7,2372.2,1.93687404]
[1770047574339,0.82250654,2373.6,2372.3,0.65752349]
[1770047574744,13.76192515,2373.6,2372.2,1.93687404]
[1770047575370,13.76192515,2373.6,2372.2,1.05387404]
[1770047575943,12.93941861,2373.4,2372.1,0.001]
[1770047576171,0.82250654,2373.6,2372.1,0.001]
[1770047576372,16.22114061,2373.7,2372.1,0.001]
[1770047576676,12.93941861,2373.4,2372.1,0.001]
[1770047577247,0.1024,2373.8,2372.1,0.001]
[1770047577450,15.09953061,2373.7,2372.1,0.001]
[1770047577668,12.93941861,2373.4,2372.1,0.001]
[1770047578175,0.883,2373.3,2372.1,0.001]
[1770047578579,12.93941861,2373.2,2372.1,0.001]
[1770047579168,0.883,2373.3,2372.1,0.001]
[1770047579169,0.01712109,2372.8,2372.1,0.001]
[1770047579581,0.01712109,2372.8,2372.4,0.001]
[1770047580080,0.90012109,2372.8,2372.4,0.001]
[1770047580281,0.01712109,2372.5,2371.2,0.001]
[1770047580595,0.01712109,2372.5,2371.5,1.05418221]
[1770047580750,12.93941861,2372.8,2371.2,0.001]
[1770047580955,12.93941861,2372.8,2371.5,1.05416014]
[1770047580956,0.01712109,2372.6,2371.5,1.05416014]
[1770047581154,0.01712109,2372.2,2371.5,1.05415819]
[1770047581454,0.01712109,2372.2,2371.7,1.054062]
[1770047581685,0.883,2372.7,2371.7,1.5811226]
[1770047581686,0.01712109,2372.7,2371.7,1.5811226]
[1770047582101,0.01712109,2372.9,2371.7,1.5811226]
[1770047582388,12.93941861,2373.2,2371.7,1.5811226]
[1770047582609,12.9565397,2373.0,2371.2,0.001]
[1770047582763,12.93941861,2372.6,2371.7,1.05409584]
[1770047582951,0.884,2372.6,2371.7,1.05409584]
[1770047583153,13.82341861,2373.1,2371.7,1.05409584]
[1770047583571,0.884,2373.1,2371.7,1.05409584]
[1770047583773,0.884,2373.1,2371.8,0.52704807]
[1770047583981,1.05301268,2374.2,2371.8,0.52704807]
[1770047583982,14.46539538,2374.6,2372.5,12.65293061]
[1770047584199,0.0011,2374.6,2372.7,0.01712109]
[1770047584376,0.0011,2374.6,2372.7,12.55053061]
[1770047584577,0.0011,2374.6,2372.8,2.22916517]
[1770047584781,2.175011,2374.5,2372.8,0.884]
[1770047584985,0.01712109,2374.2,2372.2,12.55053061]
[1770047585289,0.884,2374.1,2372.6,0.884]
[1770047585461,12.93941861,2374.5,2372.6,0.884]
[1770047585663,0.0011,2374.6,2372.7,12.5676517]
[1770047585922,0.0011,2374.6,2372.9,1.05356315]
[1770047586050,0.0011,2374.6,2372.9,13.60409376]
[1770047586775,0.0011,2374.6,2373.4,0.01712109]
[1770047586961,0.0011,2374.6,2373.5,0.884]
[1770047587162,0.0011,2374.8,2373.1,0.1024]
[1770047587380,0.0011,2374.8,2373.2,0.884]
[1770047587896,0.0011,2374.8,2373.4,1.05334119]
[1770047588068,0.0011,2374.8,2373.4,1.66841179]
[1770047588898,0.0011,2374.8,2373.5,0.1024]
[1770047589066,0.0011,2375.2,2373.8,12.65293061]
[1770047589272,0.0011,2375.2,2373.9,0.1024]
[1770047589591,0.0016,2375.6,2374.1,12.55053061]
[1770047589756,2.24432784,2376.7,2374.8,0.0008]
[1770047589757,0.0011,2376.7,2374.8,0.0008]
[1770047589959,12.93941861,2376.6,2374.9,0.883]
[1770047590188,0.01712109,2376.4,2374.9,0.883]
[1770047590557,0.01712109,2376.4,2374.8,0.0008]
[1770047590818,0.01712109,2376.4,2374.8,0.8838]
[1770047590978,12.93941861,2376.6,2374.8,0.8838]
[1770047591287,1.29576397,2376.5,2374.8,0.8838]
[1770047592087,1.29576397,2376.5,2374.9,1.0526759]
[1770047592479,0.0011,2376.2,2374.9,1.0526759]
[1770047592967,12.93941861,2376.0,2374.9,1.0526759]
[1770047593568,0.0011,2376.2,2374.9,1.0526759]
[1770047593770,0.0011,2376.2,2375.0,0.52641795]
[1770047594125,0.0011,2376.2,2374.8,0.0008]
[1770047594405,0.0011,2376.2,2375.1,1.05257377]
[1770047594607,0.0011,2376.2,2375.1,1.05257999]
[1770047596078,12.94051861,2376.2,2374.8,1.05349513]
[1770047596283,12.94051861,2376.2,2375.0,1.05258751]
[1770047596479,12.94051861,2376.2,2374.8,0.0008]
[1770047596480,15.11647047,2376.1,2374.8,0.0008]
[1770047596725,12.93941861,2375.9,2374.8,1.05347857]
[1770047597010,12.93941861,2375.9,2374.8,0.0008]
[1770047597789,12.93941861,2375.9,2375.0,1.05262845]
[1770047598117,1.29405186,2376.1,2374.8,0.8838]
[1770047598287,0.0011,2376.2,2374.8,0.8838]
[1770047600086,0.0011,2376.2,2374.9,1.0526759]
[1770047602310,0.0011,2376.2,2374.8,4.2115036]
[1770047603336,0.0011,2376.2,2374.8,4.22862469]
[1770047603507,0.0011,2376.2,2374.8,4.2115036]
[1770047603705,0.0011,2376.2,2374.9,2.07289787]
[1770047604082,0.0011,2376.2,2375.0,1.05263157]
[1770047605308,12.34771093,2376.2,2375.0,1.05263157]
[1770047606215,0.0011,2376.2,2375.0,0.001]
[1770047606385,0.0011,2376.0,2375.0,0.61580022]
[1770047608212,0.0011,2376.0,2375.1,1.93558725]
[1770047608714,0.0011,2376.0,2375.1,1.05258725]
[1770047609988,0.0011,2376.0,2375.0,4.21134903]
[1770047609989,12.34771093,2376.0,2375.0,0.001]
[1770047612031,13.22961093,2375.9,2375.0,0.001]
[1770047612522,12.34661093,2375.9,2375.0,0.001]
[1770047612699,0.0011,2376.0,2375.0,0.001]
[1770047613990,0.0011,2376.2,2375.0,0.001]
[1770047613991,0.0011,2376.2,2375.2,0.01712109]
[1770047614191,0.0011,2376.9,2375.3,1.05249863]
[1770047615632,0.0011,2376.9,2375.3,13.35927017]
[1770047615817,0.0011,2376.9,2375.6,0.1024]
[1770047616001,0.0011,2376.9,2375.5,12.30677154]
[1770047616204,0.0011,2376.9,2375.8,1.05227712]
[1770047616416,0.0011,2376.9,2375.9,0.61443856]
[1770047616895,0.0011,2376.9,2375.8,1.05227712]
[1770047616896,12.34771093,2376.9,2375.8,1.05227712]
[1770047617102,0.90506647,2376.8,2375.8,1.05227712]
[1770047617303,12.34771093,2376.9,2375.7,1.05229967]
[1770047617509,12.34661093,2376.7,2375.7,1.05229967]
[1770047617742,13.25173956,2376.6,2375.7,1.05231513]
[1770047617947,2.34379885,2376.5,2375.6,1.0523326]
[1770047618239,1.11784155,2376.1,2375.0,0.001]
[1770047618409,2.02297018,2376.1,2375.0,0.001]
[1770047618608,14.36958111,2376.1,2375.0,0.001]
[1770047618804,2.02297018,2376.0,2375.0,0.001]
[1770047619030,0.90512863,2375.9,2375.0,0.001]
[1770047619337,0.90512863,2375.8,2375.0,0.001]
[1770047619838,2.00084155,2376.4,2375.0,0.001]
[1770047620139,0.90648986,2376.3,2376.0,0.001]
[1770047620310,0.90648986,2376.2,2375.0,0.001]
[1770047620512,0.883,2376.4,2375.0,0.001]
[1770047620742,0.9064627,2376.3,2375.8,0.001]
[1770047620909,0.0011,2376.7,2375.8,0.001]
[1770047621261,13.46555248,2376.7,2375.8,0.001]
[1770047621409,14.37076735,2376.6,2375.8,0.001]
[1770047621608,0.90631487,2376.5,2375.8,0.001]
[1770047621811,2.34339161,2376.4,2375.8,0.001]
[1770047622134,0.90631487,2376.3,2375.1,0.883]
[1770047622432,0.90631487,2376.3,2375.2,1.05254294]
[1770047622640,13.46445248,2376.2,2375.2,1.05254294]
[1770047622810,1.67398653,2376.1,2375.2,1.05254294]
[1770047623006,2.39075568,2376.6,2375.2,1.05254294]
[1770047623007,1.11784155,2376.5,2375.2,1.05254294]
[1770047623234,12.34661093,2376.3,2375.2,1.05254294]
[1770047623438,0.90630138,2376.2,2375.2,1.05254294]
[1770047623622,13.25291231,2376.2,2375.2,1.05254294]
[1770047623839,0.90630138,2376.1,2375.2,1.05254294]
[1770047624012,1.32529123,2376.0,2375.2,1.05254294]
[1770047624208,1.32529123,2376.0,2375.0,4.21117177]
[1770047624563,13.67190216,2376.0,2375.0,0.001]
[1770047624843,13.46445248,2375.6,2374.8,0.0018]
[1770047625044,0.9064387,2375.5,2374.8,0.0018]
[1770047625252,0.87945717,2375.4,2374.8,0.0018]
[1770047625409,0.87945717,2375.4,2374.9,1.05264874]
[1770047625609,1.11784155,2375.7,2374.8,0.0018]
[1770047625610,13.46445248,2375.7,2374.8,0.0018]
[1770047625812,12.34661093,2375.5,2374.4,1.05287395]
[1770047626046,0.90646506,2375.4,2374.5,1.05285227]
[1770047626349,0.90646506,2375.4,2374.1,0.0008]
[1770047626514,1.3253076,2375.3,2374.1,0.0008]
[1770047626713,0.90646506,2375.2,2374.1,0.0008]
[1770047626915,0.90646506,2375.1,2374.1,0.0008]
[1770047627114,14.78976008,2375.3,2374.1,0.0008]
[1770047627314,0.90647888,2375.2,2374.1,0.0008]
[1770047627557,1.78591968,2375.1,2374.1,0.0008]
[1770047627847,13.22961093,2375.3,2374.1,0.0008]
[1770047628011,0.90601318,2375.2,2374.1,0.0008]
[1770047628210,13.22961093,2375.3,2374.1,0.0008]
[1770047628440,0.90562237,2375.2,2374.1,0.0008]
[1770047628613,13.22961093,2375.3,2374.1,0.0008]
[1770047628941,2.22858317,2375.2,2374.1,0.0008]
[1770047629140,0.90562208,2375.1,2374.1,0.0008]
[1770047630121,1.32296109,2375.2,2374.1,0.0008]
[1770047630662,1.11784155,2375.6,2374.1,0.0008]
[1770047630824,0.90483364,2375.5,2374.1,0.0008]
[1770047631020,0.90483364,2375.4,2374.1,0.0008]
[1770047631217,12.58735943,2375.7,2374.1,0.0008]
[1770047631522,0.90464179,2375.6,2374.1,0.0008]
[1770047631712,0.90464027,2375.5,2374.1,13.95082835]
[1770047631916,2.00084155,2376.5,2374.6,0.01712109]
[1770047632111,0.90439583,2376.4,2374.7,0.883]
[1770047632317,0.90439583,2376.3,2374.8,1.05272022]
[1770047632524,0.883,2376.5,2374.8,1.05272022]
[1770047632849,1.4588201,2376.4,2374.9,0.61466011]
[1770047633146,0.9043674,2376.3,2374.9,0.61466011]
[1770047633360,0.9043674,2376.3,2375.0,0.883]
[1770047634149,0.9043674,2376.3,2374.9,1.49766011]
[1770047634150,13.49172683,2376.3,2374.9,1.49766011]
[1770047634345,1.4588201,2376.4,2375.0,1.05263157]
[1770047634547,0.9044178,2376.3,2375.1,0.6760818]
[1770047634845,12.58735943,2375.9,2374.3,0.001]
[1770047635044,0.90449739,2375.8,2374.9,1.05265529]
[1770047635437,13.47035943,2375.9,2374.9,1.05265529]
[1770047635438,0.883,2375.9,2374.9,1.05265529]
[1770047635639,1.11784155,2376.4,2375.0,0.883]
[1770047635844,14.58930098,2376.7,2375.0,0.883]
[1770047636028,2.51409976,2376.6,2375.0,0.883]
[1770047636231,0.90439409,2376.5,2375.0,0.883]
[1770047636447,0.90439409,2376.4,2375.1,1.05258725]
[1770047636647,14.1970651,2376.6,2375.1,1.05258725]
[1770047636831,0.90435547,2376.5,2375.1,1.05258725]
[1770047637031,1.4993982,2376.4,2375.2,0.52629363]
[1770047637235,0.59504273,2376.4,2375.2,0.52629363]
[1770047637436,2.00194155,2376.7,2375.2,12.64756522]
[1770047637437,0.0011,2376.7,2375.2,12.64756522]
[1770047637639,0.0011,2376.7,2375.4,12.13839268]
[1770047638148,0.0011,2376.7,2375.4,12.12127159]
[1770047638649,0.0011,2376.7,2375.6,1.05236571]
[1770047639149,0.0011,2376.7,2375.5,5.09246287]
[1770047639150,0.0011,2376.7,2375.5,1.93537511]
[1770047639325,1.3718401,2376.7,2375.5,2.97084064]
[1770047639949,1.3718401,2376.7,2375.6,0.883]
[1770047639950,12.58845943,2376.7,2375.6,0.883]
[1770047640154,12.58845943,2376.7,2375.5,1.05237511]
[1770047640354,12.58735943,2376.5,2375.5,1.05240525]
[1770047640649,12.58735943,2376.5,2375.4,4.20967568]
[1770047641055,19.375493,2376.4,2374.3,0.001]
[1770047641226,12.58735943,2376.1,2375.0,1.052612]
[1770047641427,12.58735943,2375.9,2374.8,2.04801149]
[1770047641620,12.58735943,2375.9,2374.8,0.99531813]
[1770047641846,13.59397723,2375.8,2374.8,0.94531813]
[1770047642049,0.1024,2375.6,2374.7,1.05275775]
[1770047642250,0.1024,2375.6,2374.6,1.05278958]
[1770047642251,0.9042178,2375.5,2374.6,1.05278958]
[1770047642438,13.49157723,2375.5,2374.3,0.001]
[1770047642646,2.35418188,2375.6,2374.3,0.001]
[1770047642834,13.49161598,2375.5,2374.3,0.001]
[1770047643022,0.90425655,2375.4,2374.3,0.001]
[1770047644470,0.90425655,2375.4,2374.5,0.001]
[1770047645453,12.58735943,2375.5,2374.5,0.001]
[1770047645622,0.90434276,2375.4,2374.5,0.001]
[1770047645942,1.34917022,2375.3,2374.5,0.001]
[1770047647966,9.21277068,2374.9,2372.9,0.98531813]
[1770047648133,12.60448052,2374.6,2373.5,1.05427084]
[1770047648456,0.90494336,2374.5,2373.6,1.05323706]
[1770047648662,0.883,2374.8,2373.5,0.001]
[1770047648663,1.11784155,2374.8,2373.5,0.001]
[1770047648862,12.58735943,2375.3,2373.5,12.12227159]
[1770047649156,0.01712109,2375.4,2373.5,12.12227159]
[1770047649357,0.90404808,2375.3,2373.5,12.12227159]
[1770047649530,0.01712109,2375.4,2373.6,2.5165619]
[1770047649727,0.883,2375.5,2373.6,14.63783349]
[1770047649728,0.90409176,2375.3,2373.6,14.63783349]
[1770047649943,0.883,2375.5,2373.6,14.63783349]
[1770047650266,0.90402428,2375.4,2373.6,14.63783349]
[1770047650440,0.883,2375.5,2373.6,14.63783349]
[1770047650626,0.01822109,2376.4,2374.3,12.13839268]
[1770047650627,1.11784155,2376.3,2374.3,12.13839268]
[1770047650831,12.58845943,2376.4,2374.6,12.06327773]
[1770047651332,0.0011,2376.4,2374.6,12.06327773]
[1770047651744,0.0011,2376.4,2374.7,0.883]
[1770047652551,12.58845943,2376.2,2374.4,1.05289757]
[1770047652861,12.58845943,2376.2,2374.6,13.17408048]
[1770047652862,0.0011,2376.2,2374.6,13.17408048]
[1770047653067,0.0011,2376.2,2374.8,12.12127159]
[1770047653537,0.0011,2376.2,2374.9,0.01712109]
[1770047654776,0.0011,2376.2,2375.1,1.05258725]
[1770047655670,12.58845943,2376.2,2375.1,1.05258725]
[1770047656055,0.0011,2376.2,2375.1,1.05258725]
[1770047656246,0.0011,2376.2,2375.2,0.61459363]
[1770047656451,12.58845943,2376.2,2375.1,1.05258725]
[1770047656970,0.90375357,2376.1,2375.0,1.9356275]
[1770047657172,0.0011,2376.2,2375.0,1.9356275]
[1770047658070,0.0011,2376.0,2375.0,1.9356275]
[1770047658754,0.0011,2376.0,2375.0,1.0526275]
[1770047659759,12.58845943,2376.0,2375.0,1.05261607]
[1770047659966,1.25884594,2375.9,2375.0,1.05261607]
[1770047660378,0.0011,2376.0,2375.0,1.05261607]
[1770047661165,11.93445596,2375.8,2374.7,0.001]
[1770047661369,11.93445596,2375.6,2374.7,0.001]
[1770047661585,12.83892034,2375.5,2374.7,0.001]
[1770047661788,12.83892034,2375.4,2374.5,0.001]
[1770047661994,11.93445596,2375.2,2374.5,0.001]
[1770047662456,1.28389203,2375.3,2374.5,0.001]
[1770047662658,0.0011,2376.0,2374.9,1.05267175]
[1770047663594,0.0011,2376.4,2375.1,12.36818738]
[1770047663758,0.0011,2376.9,2375.4,12.36818738]
[1770047664375,0.0011,2376.9,2375.4,12.35106629]
[1770047664575,0.0011,2376.9,2375.5,0.883]
[1770047664778,0.0011,2376.9,2375.6,1.05236571]
[1770047664977,0.0011,2376.9,2375.7,0.61448286]
[1770047665565,0.0011,2376.9,2375.8,0.883]
[1770047665783,0.0011,2377.9,2376.6,0.01712109]
[1770047666097,0.0011,2377.9,2376.7,0.883]
[1770047666294,0.0011,2377.9,2376.7,13.23406629]
[1770047666591,0.0011,2377.9,2376.8,1.32340663]
[1770047666763,0.0011,2377.9,2376.9,1.05179014]